bitfinex-derivatives/quotes_BTCF0:USTF0_20251228
["timestamp","ask_amount","ask_price","bid_price","bid_amount"]
[1766913637443,0.0113819,87929.0,87918.0,0.11400348]
[1766913637634,0.02399858,87928.0,87918.0,0.11400348]
[1766913637834,0.0113819,87929.0,87918.0,0.11400348]
[1766913638142,0.02399858,87928.0,87918.0,0.11400348]
[1766913638343,0.0113819,87929.0,87918.0,0.11400348]
[1766913638545,0.02399857,87928.0,87918.0,0.11400348]
[1766913638843,0.0113819,87929.0,87918.0,0.11400348]
[1766913639045,0.02399857,87928.0,87918.0,0.11400348]
[1766913639246,0.0113819,87929.0,87918.0,0.11400348]
[1766913639438,0.02399843,87928.0,87918.0,0.11400348]
[1766913639745,0.05718745,87930.0,87918.0,0.11400348]
[1766913639947,0.02399843,87929.0,87918.0,0.11400348]
[1766913640136,0.02399843,87928.0,87918.0,0.11400348]
[1766913640336,0.05718745,87930.0,87918.0,0.11400348]
[1766913640533,0.0113828,87922.0,87911.0,0.05696]
[1766913642540,0.0113831,87920.0,87911.0,0.05696]
[1766913642841,0.05718745,87930.0,87911.0,0.05696]
[1766913643035,0.0113833,87918.0,87911.0,0.05696]
[1766913645247,0.011383,87921.0,87911.0,0.05696]
[1766913651449,0.0113832,87919.0,87911.0,0.05696]
[1766913653350,0.0113828,87922.0,87911.0,0.05696]
[1766913664171,0.0113824,87925.0,87911.0,0.05696]
[1766913665973,0.0113821,87928.0,87912.0,0.011384]
[1766913669074,0.0113823,87926.0,87912.0,0.011384]
[1766913669264,0.02412477,87925.0,87912.0,0.011384]
[1766913669767,0.02412477,87925.0,87911.0,0.05696]
[1766913670875,0.02412477,87925.0,87911.0,0.0683441]
[1766913675680,0.0113823,87926.0,87911.0,0.0683441]
[1766913675978,0.02425534,87925.0,87911.0,0.0683441]
[1766913676672,0.02425534,87925.0,87911.0,0.05696]
[1766913676974,0.02425534,87924.0,87913.0,0.0113839]
[1766913677168,0.0113819,87929.0,87913.0,0.0113839]
[1766913677366,0.02425522,87928.0,87913.0,0.0113839]
[1766913677572,0.02425522,87927.0,87913.0,0.0113839]
[1766913677774,0.02425522,87926.0,87915.0,0.0113836]
[1766913677968,0.02425522,87925.0,87915.0,0.0113836]
[1766913678173,0.0113819,87929.0,87915.0,0.0113836]
[1766913678381,0.02425454,87928.0,87915.0,0.0113836]
[1766913678566,0.02425454,87927.0,87915.0,0.0113836]
[1766913678770,0.02425454,87926.0,87915.0,0.0113836]
[1766913678966,0.02425454,87925.0,87915.0,0.0113836]
[1766913679177,0.0113819,87929.0,87915.0,0.0113836]
[1766913679379,0.02425424,87928.0,87915.0,0.0113836]
[1766913679678,0.02425424,87927.0,87915.0,0.0113836]
[1766913679876,0.02425424,87926.0,87915.0,0.0113836]
[1766913680180,0.02425424,87925.0,87915.0,0.0113836]
[1766913680381,0.0113819,87929.0,87915.0,0.0113836]
[1766913680680,0.02425398,87928.0,87915.0,0.0113836]
[1766913680872,0.02425398,87927.0,87915.0,0.0113836]
[1766913681073,0.02425398,87926.0,87915.0,0.0113836]
[1766913681269,0.02425398,87925.0,87915.0,0.0113836]
[1766913681469,0.0113819,87929.0,87915.0,0.0113836]
[1766913681679,0.02425381,87928.0,87915.0,0.0113836]
[1766913681885,0.02425381,87927.0,87915.0,0.0113836]
[1766913682082,0.02425381,87926.0,87915.0,0.0113836]
[1766913682280,0.02425381,87925.0,87915.0,0.0113836]
[1766913682482,0.0113819,87929.0,87915.0,0.0113836]
[1766913682781,0.02425371,87928.0,87915.0,0.0113836]
[1766913682983,0.02425371,87927.0,87915.0,0.0113836]
[1766913683182,0.05718745,87930.0,87915.0,0.0113836]
[1766913683383,0.02425206,87929.0,87915.0,0.0113836]
[1766913683684,0.02425206,87928.0,87915.0,0.0113836]
[1766913683981,0.02425206,87927.0,87915.0,0.0113836]
[1766913684181,0.05718745,87930.0,87915.0,0.0113836]
[1766913684373,0.024251,87929.0,87915.0,0.0113836]
[1766913684573,0.024251,87928.0,87915.0,0.0113836]
[1766913684878,0.05718745,87930.0,87911.0,0.05696]
[1766913685082,0.02425036,87929.0,87911.0,0.05696]
[1766913685381,0.05718745,87930.0,87911.0,0.05696]
[1766913685584,0.02424751,87929.0,87911.0,0.05696]
[1766913685781,0.05718745,87930.0,87911.0,0.05696]
[1766913686080,0.02424751,87929.0,87911.0,0.05696]
[1766913686282,0.05718745,87930.0,87918.0,0.0113832]
[1766913686483,0.02424579,87929.0,87918.0,0.0113832]
[1766913686673,0.05718745,87930.0,87918.0,0.0113832]
[1766913686874,0.02424579,87929.0,87918.0,0.0113832]
[1766913687182,0.05718745,87930.0,87918.0,0.0113832]
[1766913687379,0.0242445,87929.0,87918.0,0.0113832]
[1766913687580,0.05718745,87930.0,87918.0,0.0113832]
[1766913687782,0.02424445,87929.0,87918.0,0.0113832]
[1766913687984,0.05718745,87930.0,87918.0,0.0113832]
[1766913688284,0.02424445,87929.0,87918.0,0.0113832]
[1766913688488,0.05718745,87930.0,87918.0,0.0113832]
[1766913688687,0.02424341,87929.0,87918.0,0.0113832]
[1766913688876,0.05718745,87930.0,87918.0,0.0113832]
[1766913689586,0.02424259,87929.0,87918.0,0.0113832]
[1766913689884,0.05718745,87930.0,87918.0,0.0113832]
[1766913690282,0.05718745,87930.0,87915.0,0.0113837]
[1766913693484,0.02424082,87929.0,87915.0,0.0113837]
[1766913693686,0.02424082,87928.0,87915.0,0.0113837]
[1766913693985,0.02424082,87927.0,87915.0,0.0113837]
[1766913694285,0.05718745,87930.0,87917.0,0.0113834]
[1766913698587,0.05718745,87930.0,87914.0,0.0113838]
[1766913701395,0.0113819,87929.0,87914.0,0.0113838]
[1766913702896,0.0113819,87929.0,87911.0,0.0683441]
[1766913703083,0.0113822,87927.0,87911.0,0.0683441]
[1766913707494,0.0113822,87927.0,87911.0,0.1651041]
[1766913708998,0.0113822,87927.0,87913.0,0.0113839]
[1766913711903,0.06856925,87930.0,87913.0,0.0113839]
[1766913712201,0.02407693,87929.0,87913.0,0.0113839]
[1766913712403,0.06856925,87930.0,87913.0,0.0113839]
[1766913712604,0.02407955,87929.0,87913.0,0.0113839]
[1766913712800,0.06856925,87930.0,87913.0,0.0113839]
[1766913713001,0.02407955,87929.0,87913.0,0.0113839]
[1766913713200,0.06856925,87930.0,87913.0,0.0113839]
[1766913713398,0.02408069,87929.0,87913.0,0.0113839]
[1766913713599,0.06856925,87930.0,87913.0,0.0113839]
[1766913713902,0.02408069,87929.0,87913.0,0.0113839]
[1766913714088,0.06856925,87930.0,87913.0,0.0113839]
[1766913714292,0.02408258,87929.0,87913.0,0.0113839]
[1766913714504,0.011382,87928.0,87913.0,0.0113839]
[1766913716706,0.0113823,87926.0,87911.0,0.15372]
[1766913717406,0.0113823,87926.0,87912.0,0.011384]
[1766913720907,0.0113823,87926.0,87911.0,0.15372]
[1766913721908,0.0113823,87926.0,87911.0,0.1651041]
[1766913722112,0.011382,87929.0,87913.0,0.0113839]
[1766913723007,0.011382,87929.0,87919.0,0.1139968]
[1766913725907,0.05718745,87930.0,87911.0,0.15372]
[1766913725908,0.0113822,87927.0,87911.0,0.15372]
[1766913726212,0.0113822,87927.0,87912.0,0.0113841]
[1766913735141,0.06856925,87930.0,87912.0,0.0113841]
[1766913735438,0.02404696,87929.0,87912.0,0.0113841]
[1766913735639,0.06856925,87930.0,87912.0,0.0113841]
[1766913735840,0.02404696,87929.0,87912.0,0.0113841]
[1766913736034,0.06856925,87930.0,87912.0,0.0113841]
[1766913736229,0.02404696,87929.0,87912.0,0.0113841]
[1766913736430,0.06856925,87930.0,87912.0,0.0113841]
[1766913736629,0.02404696,87929.0,87912.0,0.0113841]
[1766913736832,0.06856925,87930.0,87912.0,0.0113841]
[1766913737030,0.02404696,87929.0,87912.0,0.0113841]
[1766913737240,0.06856925,87930.0,87912.0,0.0113841]
[1766913737442,0.02404696,87929.0,87912.0,0.0113841]
[1766913737642,0.06856925,87930.0,87912.0,0.0113841]
[1766913737840,0.02404696,87929.0,87912.0,0.0113841]
[1766913738141,0.06856925,87930.0,87912.0,0.0113841]
[1766913738340,0.02404697,87929.0,87912.0,0.0113841]
[1766913738540,0.06856925,87930.0,87912.0,0.0113841]
[1766913738730,0.02404697,87929.0,87912.0,0.0113841]
[1766913738931,0.06856925,87930.0,87912.0,0.0113841]
[1766913739131,0.02404697,87929.0,87912.0,0.0113841]
[1766913739332,0.06856925,87930.0,87912.0,0.0113841]
[1766913739533,0.011382,87928.0,87912.0,0.0113841]
[1766913743648,0.02404632,87927.0,87912.0,0.0113841]
[1766913743946,0.02404632,87926.0,87912.0,0.0113841]
[1766913744138,0.02404632,87925.0,87912.0,0.0113841]
[1766913744337,0.02404632,87924.0,87912.0,0.0113841]
[1766913744538,0.011382,87928.0,87912.0,0.0113841]
[1766913744539,0.02404632,87923.0,87912.0,0.0113841]
[1766913744740,0.02404632,87922.0,87912.0,0.0113841]
[1766913745048,0.011382,87928.0,87912.0,0.0113841]
[1766913745252,0.02404625,87927.0,87912.0,0.0113841]
[1766913745437,0.02404625,87926.0,87912.0,0.0113841]
[1766913745738,0.02404625,87925.0,87912.0,0.0113841]
[1766913745934,0.02404625,87924.0,87912.0,0.0113841]
[1766913746137,0.011382,87928.0,87912.0,0.0113841]
[1766913746138,0.02404625,87923.0,87912.0,0.0113841]
[1766913746346,0.02404625,87922.0,87912.0,0.0113841]
[1766913746540,0.011382,87928.0,87912.0,0.0113841]
[1766913746840,0.02404618,87927.0,87912.0,0.0113841]
[1766913747040,0.02404618,87926.0,87912.0,0.0113841]
[1766913747241,0.02404618,87925.0,87912.0,0.0113841]
[1766913747442,0.02404618,87924.0,87912.0,0.0113841]
[1766913747644,0.02404618,87923.0,87912.0,0.0113841]
[1766913747843,0.02404618,87922.0,87912.0,0.0113841]
[1766913748043,0.011382,87928.0,87912.0,0.0113841]
[1766913748249,0.02404613,87927.0,87912.0,0.0113841]
[1766913748551,0.02404613,87926.0,87912.0,0.0113841]
[1766913748751,0.02404613,87925.0,87912.0,0.0113841]
[1766913748954,0.02404613,87924.0,87912.0,0.0113841]
[1766913749148,0.02404613,87923.0,87912.0,0.0113841]
[1766913749348,0.02404613,87922.0,87912.0,0.0113841]
[1766913749546,0.011382,87928.0,87912.0,0.0113841]
[1766913749748,0.02404609,87927.0,87912.0,0.0113841]
[1766913749946,0.02404609,87926.0,87912.0,0.0113841]
[1766913750147,0.02404609,87925.0,87912.0,0.0113841]
[1766913750454,0.02404609,87924.0,87912.0,0.0113841]
[1766913750649,0.02404609,87923.0,87911.0,0.15372]
[1766913750850,0.02404609,87922.0,87911.0,0.15372]
[1766913751044,0.0113823,87926.0,87911.0,0.15372]
[1766913751245,0.02404636,87925.0,87911.0,0.15372]
[1766913751452,0.02404636,87924.0,87911.0,0.15372]
[1766913751651,0.02404636,87923.0,87911.0,0.15372]
[1766913751949,0.02404636,87922.0,87911.0,0.15372]
[1766913752151,0.0113823,87926.0,87911.0,0.15372]
[1766913752353,0.02404603,87925.0,87911.0,0.15372]
[1766913752554,0.02404603,87924.0,87911.0,0.15372]
[1766913752854,0.02404603,87923.0,87911.0,0.15372]
[1766913753052,0.02404603,87922.0,87911.0,0.15372]
[1766913753253,0.0113823,87926.0,87911.0,0.15372]
[1766913753555,0.02404594,87925.0,87911.0,0.15372]
[1766913753745,0.0113823,87926.0,87911.0,0.15372]
[1766913759272,0.0113823,87926.0,87911.0,0.1651041]
[1766913759451,0.011382,87929.0,87911.0,0.1651041]
[1766913759651,0.02404585,87928.0,87911.0,0.1651041]
[1766913759949,0.011382,87929.0,87911.0,0.1651041]
[1766913760150,0.02404585,87928.0,87911.0,0.1651041]
[1766913760351,0.011382,87929.0,87911.0,0.1651041]
[1766913760550,0.02404587,87928.0,87911.0,0.1651041]
[1766913760760,0.011382,87929.0,87911.0,0.1651041]
[1766913760962,0.02402004,87928.0,87911.0,0.1651041]
[1766913761160,0.011382,87929.0,87911.0,0.1651041]
[1766913761462,0.02402008,87928.0,87911.0,0.1651041]
[1766913761763,0.011382,87929.0,87911.0,0.1651041]
[1766913762058,0.02402008,87928.0,87911.0,0.1651041]
[1766913762258,0.011382,87929.0,87911.0,0.1651041]
[1766913762461,0.02402012,87928.0,87911.0,0.1651041]
[1766913762661,0.011382,87929.0,87911.0,0.1651041]
[1766913762863,0.02402012,87928.0,87911.0,0.1651041]
[1766913763058,0.011382,87929.0,87911.0,0.1651041]
[1766913763359,0.02402012,87928.0,87911.0,0.1651041]
[1766913763559,0.011382,87929.0,87911.0,0.1651041]
[1766913763760,0.02402017,87928.0,87911.0,0.1651041]
[1766913763960,0.011382,87929.0,87911.0,0.1651041]
[1766913764263,0.0113822,87927.0,87911.0,0.1651041]
[1766913771971,0.0113822,87927.0,87911.0,0.15372]
[1766913774672,0.05718745,87930.0,87911.0,0.15372]
[1766913774972,0.02402097,87929.0,87911.0,0.15372]
[1766913775172,0.02402097,87928.0,87911.0,0.15372]
[1766913775375,0.05718745,87930.0,87911.0,0.15372]
[1766913775562,0.0240209,87929.0,87911.0,0.15372]
[1766913775871,0.0240209,87928.0,87911.0,0.15372]
[1766913776073,0.05718745,87930.0,87911.0,0.15372]
[1766913776372,0.0113824,87925.0,87911.0,0.15372]
[1766913776762,0.0113827,87923.0,87911.0,0.15372]
[1766913783677,0.02402062,87922.0,87911.0,0.15372]
[1766913783880,0.0113823,87926.0,87911.0,0.15372]
[1766913784176,0.02402062,87925.0,87911.0,0.15372]
[1766913784376,0.02402062,87924.0,87911.0,0.15372]
[1766913784577,0.0113823,87926.0,87911.0,0.15372]
[1766913786268,0.0113823,87926.0,87912.0,0.011384]
[1766913787285,0.0113823,87926.0,87911.0,0.15372]
[1766913788283,0.0113826,87924.0,87911.0,0.15372]
[1766913790685,0.0239797,87923.0,87911.0,0.15372]
[1766913790991,0.0239797,87922.0,87911.0,0.15372]
[1766913791192,0.0113826,87924.0,87911.0,0.15372]
[1766913791384,0.02397971,87923.0,87911.0,0.15372]
[1766913791584,0.02397971,87922.0,87911.0,0.15372]
[1766913791778,0.0113826,87924.0,87911.0,0.15372]
[1766913792081,0.02397971,87923.0,87911.0,0.15372]
[1766913792276,0.02397971,87922.0,87911.0,0.15372]
[1766913792486,0.0113826,87924.0,87911.0,0.15372]
[1766913792689,0.02397972,87923.0,87911.0,0.15372]
[1766913792887,0.02397972,87922.0,87911.0,0.15372]
[1766913793089,0.0113826,87924.0,87911.0,0.15372]
[1766913793284,0.02397972,87923.0,87911.0,0.15372]
[1766913793486,0.02397972,87922.0,87911.0,0.15372]
[1766913793682,0.0113826,87924.0,87911.0,0.15372]
[1766913800895,0.0113821,87928.0,87911.0,0.1651041]
[1766913801201,0.0113823,87926.0,87911.0,0.1651041]
[1766913803102,0.0113826,87923.0,87911.0,0.15372]
[1766913803400,0.0113823,87926.0,87911.0,0.15372]
[1766913805603,0.0113825,87924.0,87911.0,0.15372]
[1766913806303,0.0113822,87927.0,87911.0,0.1651041]
[1766913807905,0.0113824,87925.0,87911.0,0.1651041]
[1766913814809,0.0113821,87928.0,87911.0,0.1651041]
[1766913815199,0.0113823,87926.0,87911.0,0.1651041]
[1766913819515,0.0113819,87929.0,87913.0,0.0113839]
[1766913825117,0.02395228,87928.0,87913.0,0.0113839]
[1766913825311,0.0113819,87929.0,87913.0,0.0113839]
[1766913825609,0.02395233,87928.0,87913.0,0.0113839]
[1766913825803,0.0113819,87929.0,87913.0,0.0113839]
[1766913826008,0.02395233,87928.0,87913.0,0.0113839]
[1766913826208,0.0113819,87929.0,87913.0,0.0113839]
[1766913826408,0.0239524,87928.0,87913.0,0.0113839]
[1766913826609,0.0113819,87929.0,87913.0,0.0113839]
[1766913826807,0.0239524,87928.0,87913.0,0.0113839]
[1766913827008,0.0113819,87929.0,87913.0,0.0113839]
[1766913827208,0.0239524,87928.0,87913.0,0.0113839]
[1766913827416,0.0113819,87929.0,87913.0,0.0113839]
[1766913827614,0.02395249,87928.0,87913.0,0.0113839]
[1766913827815,0.0113819,87929.0,87913.0,0.0113839]
[1766913828016,0.02395249,87928.0,87913.0,0.0113839]
[1766913828303,0.0113819,87929.0,87913.0,0.0113839]
[1766913831220,0.02395278,87928.0,87913.0,0.0113839]
[1766913831423,0.0113819,87929.0,87913.0,0.0113839]
[1766913831620,0.02395278,87928.0,87913.0,0.0113839]
[1766913831809,0.0113819,87929.0,87913.0,0.0113839]
[1766913832015,0.02395278,87928.0,87913.0,0.0113839]
[1766913832220,0.0113819,87929.0,87913.0,0.0113839]
[1766913832425,0.02395286,87928.0,87913.0,0.0113839]
[1766913832622,0.0113819,87929.0,87913.0,0.0113839]
[1766913832815,0.02395286,87928.0,87913.0,0.0113839]
[1766913833015,0.0113819,87929.0,87913.0,0.0113839]
[1766913833217,0.02395286,87928.0,87913.0,0.0113839]
[1766913833418,0.0113819,87929.0,87913.0,0.0113839]
[1766913833618,0.02395296,87928.0,87913.0,0.0113839]
[1766913833917,0.0113819,87929.0,87913.0,0.0113839]
[1766913833918,0.02395296,87927.0,87913.0,0.0113839]
[1766913834120,0.02395296,87926.0,87913.0,0.0113839]
[1766913834322,0.02395296,87925.0,87913.0,0.0113839]
[1766913834626,0.02395296,87924.0,87913.0,0.0113839]
[1766913834825,0.02395296,87923.0,87911.0,0.15372]
[1766913835125,0.02395296,87922.0,87911.0,0.15372]
[1766913835326,0.0113822,87927.0,87911.0,0.15372]
[1766913835526,0.02395298,87926.0,87911.0,0.15372]
[1766913835728,0.02395298,87925.0,87911.0,0.15372]
[1766913835928,0.02395298,87924.0,87911.0,0.15372]
[1766913836226,0.02395298,87923.0,87911.0,0.15372]
[1766913836428,0.02395298,87922.0,87912.0,0.011384]
[1766913836727,0.0113822,87927.0,87912.0,0.011384]
[1766913836926,0.02395299,87926.0,87912.0,0.011384]
[1766913837225,0.02395299,87925.0,87912.0,0.011384]
[1766913837418,0.02395299,87924.0,87912.0,0.011384]
[1766913837619,0.02395299,87923.0,87912.0,0.011384]
[1766913837818,0.02395299,87922.0,87912.0,0.011384]
[1766913838019,0.0113822,87927.0,87912.0,0.011384]
[1766913838219,0.02395298,87926.0,87912.0,0.011384]
[1766913838526,0.02395298,87925.0,87912.0,0.011384]
[1766913838727,0.02395298,87924.0,87912.0,0.011384]
[1766913838927,0.02395298,87923.0,87911.0,0.15372]
[1766913839126,0.0113822,87927.0,87911.0,0.15372]
[1766913839127,0.02395298,87922.0,87911.0,0.15372]
[1766913839326,0.0113822,87927.0,87911.0,0.15372]
[1766913839528,0.02395299,87926.0,87911.0,0.15372]
[1766913839728,0.02395299,87925.0,87911.0,0.15372]
[1766913839930,0.02395299,87924.0,87911.0,0.15372]
[1766913840129,0.02395299,87923.0,87912.0,0.0113841]
[1766913840429,0.02395299,87922.0,87912.0,0.0113841]
[1766913840630,0.0113822,87927.0,87912.0,0.0113841]
[1766913840928,0.02395299,87926.0,87912.0,0.0113841]
[1766913841129,0.02395299,87925.0,87912.0,0.0113841]
[1766913841329,0.02395299,87924.0,87912.0,0.0113841]
[1766913841531,0.02395299,87923.0,87912.0,0.0113841]
[1766913841719,0.02395299,87922.0,87912.0,0.0113841]
[1766913841921,0.0113822,87927.0,87912.0,0.0113841]
[1766913842123,0.023953,87926.0,87912.0,0.0113841]
[1766913842323,0.023953,87925.0,87912.0,0.0113841]
[1766913842532,0.023953,87924.0,87912.0,0.0113841]
[1766913842737,0.023953,87923.0,87912.0,0.0113841]
[1766913842925,0.023953,87922.0,87912.0,0.0113841]
[1766913843230,0.0113822,87927.0,87912.0,0.0113841]
[1766913843432,0.02395301,87926.0,87912.0,0.0113841]
[1766913843731,0.0113822,87927.0,87912.0,0.0113841]
[1766913844132,0.011382,87928.0,87912.0,0.0113841]
[1766913856642,0.011382,87928.0,87911.0,0.15372]
[1766913856643,0.00022745,87930.0,87914.0,0.0113837]
[1766913856832,0.02400329,87929.0,87914.0,0.0113837]
[1766913857033,0.00022745,87930.0,87914.0,0.0113837]
[1766913864147,0.0113819,87929.0,87914.0,0.0113837]
[1766913866245,0.0113819,87929.0,87911.0,0.1651041]
[1766913867942,0.0113822,87927.0,87911.0,0.1651041]
[1766913868852,0.0113821,87928.0,87911.0,0.1651041]
[1766913869534,0.0113821,87928.0,87913.0,0.0113838]
[1766913870252,0.0113821,87928.0,87911.0,0.15372]
[1766913870653,0.0113821,87928.0,87912.0,0.011384]
[1766913873647,0.02399866,87927.0,87912.0,0.011384]
[1766913873852,0.02399866,87926.0,87912.0,0.011384]
[1766913874154,0.02399866,87925.0,87912.0,0.011384]
[1766913874355,0.02399866,87924.0,87912.0,0.011384]
[1766913874552,0.0113821,87928.0,87912.0,0.011384]
[1766913874856,0.02399878,87927.0,87912.0,0.011384]
[1766913875157,0.02399878,87926.0,87912.0,0.011384]
[1766913875453,0.02399878,87925.0,87912.0,0.011384]
[1766913875653,0.02399878,87924.0,87912.0,0.011384]
[1766913875865,0.0113821,87928.0,87912.0,0.011384]
[1766913876156,0.02399889,87927.0,87912.0,0.011384]
[1766913876453,0.0113821,87928.0,87911.0,0.15372]
[1766913876454,0.02399889,87926.0,87917.0,0.11399903]
[1766913876656,0.02399889,87925.0,87918.0,0.05692]
[1766913876855,0.02399889,87924.0,87918.0,0.05692]
[1766913877051,0.00022745,87930.0,87918.0,0.05692]
[1766913877250,0.02399897,87929.0,87918.0,0.05692]
[1766913877551,0.02399897,87928.0,87918.0,0.05692]
[1766913877759,0.02399897,87927.0,87918.0,0.05692]
[1766913877956,0.02399897,87926.0,87918.0,0.05692]
[1766913878257,0.02399897,87925.0,87918.0,0.05692]
[1766913878555,0.02399897,87924.0,87918.0,0.05692]
[1766913878757,0.01160925,87930.0,87918.0,0.05692]
[1766913879056,0.02399913,87929.0,87918.0,0.05692]
[1766913879258,0.02399913,87928.0,87918.0,0.05692]
[1766913879449,0.02399913,87927.0,87918.0,0.05692]
[1766913879756,0.02399913,87926.0,87918.0,0.05692]
[1766913879957,0.02399913,87925.0,87918.0,0.05692]
[1766913880158,0.02399913,87924.0,87918.0,0.05692]
[1766913880357,0.01160925,87930.0,87918.0,0.05692]
[1766913880553,0.02399924,87929.0,87918.0,0.05692]
[1766913880856,0.02399924,87928.0,87918.0,0.05692]
[1766913881058,0.02399924,87927.0,87918.0,0.05692]
[1766913881358,0.02399924,87926.0,87918.0,0.05692]
[1766913881551,0.01160925,87930.0,87918.0,0.05692]
[1766913881552,0.00899924,87925.0,87918.0,0.05692]
[1766913881743,0.01160925,87930.0,87918.0,0.05692]
[1766913882149,0.01160925,87930.0,87920.0,0.11399903]
[1766913884762,0.00022745,87930.0,87920.0,0.11399903]
[1766913884958,0.0113814,87933.0,87920.0,0.11399903]
[1766913884959,0.0113802,87942.0,87925.0,0.0113823]
[1766913885163,0.0113802,87942.0,87930.0,0.11399903]
[1766913885364,0.05692,87943.0,87930.0,0.11399903]
[1766913886768,0.09676,87945.0,87931.0,0.05692]
[1766913888662,0.0113799,87944.0,87931.0,0.05692]
[1766913892358,0.09676,87945.0,87931.0,0.05692]
[1766913893974,0.0113796,87947.0,87931.0,0.05692]
[1766913897965,0.0034844,87954.0,87931.0,0.15368]
[1766913898174,0.0034844,87954.0,87935.0,0.011381]
[1766913898382,0.0113785,87955.0,87935.0,0.011381]
[1766913898877,0.0113789,87953.0,87935.0,0.011381]
[1766913899282,0.0113791,87951.0,87932.0,0.0113814]
[1766913901984,0.0113791,87951.0,87934.0,0.0113811]
[1766913902188,0.0113787,87954.0,87934.0,0.0113811]
[1766913902882,0.0682983,87957.0,87931.0,0.15368]
[1766913903083,0.09676,87959.0,87936.0,0.0113808]
[1766913903284,0.0113787,87954.0,87931.0,0.15368]
[1766913904188,0.0113787,87954.0,87935.0,0.011381]
[1766913904689,0.09676,87959.0,87931.0,0.15368]
[1766913904988,0.09676,87959.0,87936.0,0.0113809]
[1766913905189,0.09676,87959.0,87933.0,0.0113813]
[1766913905388,0.0113791,87951.0,87931.0,0.15368]
[1766913905580,0.0113794,87949.0,87931.0,0.15368]
[1766913905779,0.0113792,87950.0,87932.0,0.0113814]
[1766913907279,0.0113787,87954.0,87932.0,0.0113814]
[1766913907486,0.0113787,87954.0,87934.0,0.0113811]
[1766913908590,0.0113787,87954.0,87936.0,0.0113809]
[1766913908797,0.0113782,87958.0,87931.0,0.15368]
[1766913909486,0.0113782,87958.0,87931.0,0.19463016]
[1766913910286,0.0113782,87958.0,87939.0,0.0113806]
[1766913910588,0.0113782,87958.0,87940.0,0.05692]
[1766913910787,0.0113782,87958.0,87941.0,0.09672]
[1766913911395,0.09676,87959.0,87941.0,0.09672]
[1766913912397,0.09676,87959.0,87941.0,0.1081002]
[1766913913697,0.108138,87959.0,87941.0,0.1081002]
[1766913925304,0.108138,87959.0,87943.0,0.01138]
[1766913925497,0.0113783,87957.0,87941.0,0.09672]
[1766913925904,0.0113783,87957.0,87942.0,0.0113801]
[1766913926705,0.0113786,87955.0,87941.0,0.09672]
[1766913927305,0.02397778,87954.0,87941.0,0.09672]
[1766913927603,0.02397778,87953.0,87941.0,0.09672]
[1766913927805,0.02397778,87952.0,87941.0,0.09672]
[1766913928004,0.02397778,87951.0,87941.0,0.09672]
[1766913928304,0.0113786,87955.0,87941.0,0.09672]
[1766913928505,0.02398446,87954.0,87941.0,0.09672]
[1766913928699,0.02398446,87953.0,87941.0,0.09672]
[1766913928905,0.02398446,87952.0,87941.0,0.09672]
[1766913929205,0.02398446,87951.0,87941.0,0.09672]
[1766913929404,0.0113786,87955.0,87941.0,0.09672]
[1766913929592,0.02398673,87954.0,87941.0,0.09672]
[1766913929797,0.03536553,87953.0,87941.0,0.09672]
[1766913930005,0.02398673,87952.0,87941.0,0.09672]
[1766913930200,0.02398673,87951.0,87941.0,0.09672]
[1766913930401,0.0113788,87953.0,87941.0,0.09672]
[1766913930701,0.0239814,87952.0,87942.0,0.05692]
[1766913930906,0.0239814,87951.0,87942.0,0.15364]
[1766913931102,0.0113788,87953.0,87942.0,0.15364]
[1766913931307,0.0239792,87952.0,87942.0,0.15364]
[1766913931507,0.0113788,87953.0,87942.0,0.15364]
[1766913931508,0.0239792,87951.0,87942.0,0.15364]
[1766913931703,0.0239792,87950.0,87942.0,0.15364]
[1766913931904,0.0113788,87953.0,87942.0,0.15364]
[1766913932206,0.02397904,87952.0,87942.0,0.15364]
[1766913932405,0.02397904,87951.0,87942.0,0.15364]
[1766913932709,0.02397904,87950.0,87942.0,0.15364]
[1766913932910,0.0113788,87953.0,87942.0,0.15364]
[1766913933206,0.02398343,87952.0,87942.0,0.15364]
[1766913933408,0.02398343,87951.0,87942.0,0.15364]
[1766913933707,0.0113788,87953.0,87942.0,0.15364]
[1766913934008,0.0113788,87953.0,87937.0,0.07283669]
[1766913934306,0.0113788,87953.0,87938.0,0.15364]
[1766913938612,0.0113788,87953.0,87937.0,0.07283669]
[1766913938813,0.0113788,87953.0,87938.0,0.15364]
[1766913941212,0.0113784,87956.0,87939.0,0.0113805]
[1766913943112,0.0113787,87954.0,87939.0,0.0113805]
[1766913951117,0.0113787,87954.0,87938.0,0.15364]
[1766913954019,0.0113787,87954.0,87938.0,0.1650206]
[1766913955920,0.0113787,87954.0,87940.0,0.11392494]
[1766913958319,0.0113792,87950.0,87941.0,0.05692]
[1766913958526,0.0113792,87950.0,87941.0,0.15364]
[1766913959123,0.0113792,87950.0,87940.0,0.11392494]
[1766913959322,0.0113792,87950.0,87942.0,0.05692]
[1766913961524,0.0113794,87948.0,87940.0,0.11392494]
[1766913961831,0.011378,87959.0,87941.0,0.05692]
[1766913962021,0.02410701,87958.0,87941.0,0.05692]
[1766913962231,0.02410701,87957.0,87941.0,0.05692]
[1766913962424,0.02410701,87956.0,87941.0,0.05692]
[1766913962612,0.02410701,87955.0,87941.0,0.05692]
[1766913962817,0.02410701,87954.0,87941.0,0.05692]
[1766913963016,0.011378,87959.0,87941.0,0.05692]
[1766913963216,0.0113794,87948.0,87941.0,0.05692]
[1766913964429,0.0113791,87951.0,87941.0,0.05692]
[1766913964629,0.0113794,87949.0,87941.0,0.05692]
[1766913964833,0.02410955,87948.0,87941.0,0.05692]
[1766913965428,0.0113795,87947.0,87941.0,0.05692]
[1766913966029,0.0113792,87950.0,87941.0,0.05692]
[1766913966232,0.02411033,87949.0,87941.0,0.05692]
[1766913966427,0.02411033,87948.0,87941.0,0.05692]
[1766913966620,0.0113792,87950.0,87941.0,0.05692]
[1766913966821,0.02411033,87949.0,87941.0,0.05692]
[1766913967130,0.02411033,87948.0,87941.0,0.05692]
[1766913967332,0.0113788,87953.0,87941.0,0.05692]
[1766913967631,0.02411013,87952.0,87941.0,0.05692]
[1766913967827,0.02411013,87951.0,87941.0,0.05692]
[1766913968028,0.02411013,87950.0,87941.0,0.05692]
[1766913968228,0.02411013,87949.0,87941.0,0.05692]
[1766913968428,0.02411013,87948.0,87941.0,0.05692]
[1766913968629,0.0113788,87953.0,87941.0,0.05692]
[1766913968830,0.02410997,87952.0,87941.0,0.05692]
[1766913969034,0.02410997,87951.0,87941.0,0.05692]
[1766913969236,0.02410997,87950.0,87941.0,0.05692]
[1766913969448,0.02410997,87949.0,87941.0,0.05692]
[1766913969649,0.02410997,87948.0,87941.0,0.05692]
[1766913969849,0.0113791,87951.0,87941.0,0.05692]
[1766913970040,0.02410925,87950.0,87941.0,0.05692]